bitfinex/quotes_SOLUSD_20251208
["timestamp","ask_amount","ask_price","bid_price","bid_amount"]
[1765210383472,9.46994492,135.45,135.42,15.76593652]
[1765210383674,9.46994492,135.45,135.41,16.48630291]
[1765210383985,9.46994492,135.45,135.42,15.76576178]
[1765210384181,8.80994492,135.46,135.44,8.38150655]
[1765210384691,8.80994492,135.46,135.45,0.72]
[1765210384889,8.08,135.47,135.45,9.10150655]
[1765210385184,8.80994492,135.48,135.46,16.48375961]
[1765210385387,8.18,135.49,135.46,16.48375961]
[1765210385590,8.18,135.49,135.47,9.10150655]
[1765210386186,8.18,135.49,135.46,15.76375961]
[1765210386494,8.18,135.49,135.46,16.43542395]
[1765210386785,8.18,135.49,135.47,9.10150655]
[1765210386983,8.18,135.49,135.47,0.72]
[1765210387375,8.18,135.49,135.47,16.48303237]
[1765210387574,0.1,135.49,135.48,8.38150655]
[1765210387789,0.1,135.49,135.48,9.10150655]
[1765210389270,0.1,135.49,135.48,16.48266982]
[1765210393389,8.08,135.54,135.48,79.92139434]
[1765210393594,0.1,135.55,135.53,8.38150655]
[1765210393793,0.1,135.55,135.51,8.08]
[1765210394008,0.1,135.55,135.54,8.38150655]
[1765210395175,0.1,135.55,135.54,15.75940237]
[1765210395588,0.1,135.55,135.53,8.38150655]
[1765210395898,0.1,135.55,135.51,26.52834564]
[1765210395899,8.80994492,135.54,135.51,15.76101076]
[1765210396100,8.80994492,135.54,135.52,7.37898357]
[1765210396400,9.46994492,135.54,135.52,8.38150655]
[1765210396601,9.46994492,135.54,135.51,15.7607998]
[1765210397896,8.90994492,135.55,135.51,16.4807998]
[1765210398100,25.21880892,135.55,135.54,8.38150655]
[1765210398296,0.1,135.55,135.52,0.72]
[1765210398476,0.1,135.55,135.54,8.38150655]
[1765210399489,0.1,135.55,135.53,8.38150655]
[1765210399693,0.1,135.55,135.53,15.75955977]
[1765210399891,0.1,135.55,135.54,8.38150655]
[1765210400088,0.1,135.55,135.54,15.75940237]
[1765210400299,0.1,135.55,135.54,16.47940237]
[1765210400494,0.76,135.55,135.5,19.16942403]
[1765210400800,8.84,135.55,135.51,15.76067487]
[1765210400974,8.80994492,135.54,135.51,15.76067487]
[1765210401174,9.48994492,135.54,135.51,15.76067487]
[1765210401374,8.80994492,135.54,135.5,8.38150655]
[1765210401608,8.80994492,135.52,135.49,8.38150655]
[1765210401782,8.80994492,135.52,135.51,8.38150655]
[1765210401981,8.80994492,135.52,135.5,15.76133803]
[1765210402592,8.80994492,135.52,135.5,16.45133803]
[1765210402893,8.80994492,135.52,135.5,15.76133803]
[1765210403096,0.68,135.51,135.49,8.38150655]
[1765210403302,8.08,135.52,135.48,15.76223592]
[1765210403502,8.76,135.52,135.49,8.38150655]
[1765210403711,8.08,135.52,135.5,8.38150655]
[1765210404202,8.08,135.52,135.5,15.76152025]
[1765210404410,8.08,135.52,135.5,8.38150655]
[1765210404589,8.08,135.52,135.49,16.45205659]
[1765210404790,8.08,135.52,135.5,7.38007316]
[1765210404985,9.48994492,135.51,135.49,8.38150655]
[1765210405195,9.48994492,135.51,135.48,15.76263577]
[1765210405483,8.08,135.52,135.49,8.38150655]
[1765210405688,9.48994492,135.51,135.48,15.76246195]
[1765210405990,8.80994492,135.51,135.49,7.38053347]
[1765210406191,8.80994492,135.51,135.49,15.76204002]
[1765210406700,8.08,135.52,135.5,8.38150655]
[1765210406881,8.08,135.52,135.49,16.45204002]
[1765210407078,8.76,135.52,135.49,16.45204002]
[1765210407307,8.76,135.52,135.49,15.76204002]
[1765210408281,8.76,135.52,135.49,16.45204002]
[1765210408494,8.76,135.52,135.49,15.76204002]
[1765210410506,8.08,135.52,135.49,16.45204002]
[1765210410811,8.76,135.52,135.49,11.22603021]
[1765210411310,16.13907337,135.52,135.49,10.53603021]
[1765210411888,12.64544166,135.51,135.44,19.14772234]
[1765210412106,12.64544166,135.51,135.46,10.53739662]
[1765210412408,8.80994492,135.49,135.46,10.53739662]
[1765210412613,16.88994492,135.49,135.46,10.53739662]
[1765210412791,16.88994492,135.49,135.47,10.53717653]
[1765210412986,16.18901829,135.52,135.48,10.53666001]
[1765210413195,17.56994492,135.51,135.48,10.53666001]
[1765210413804,8.08,135.51,135.49,3.15549674]
[1765210413996,0.68,135.5,135.47,10.53699162]
[1765210414202,8.08,135.51,135.46,3.84549674]
[1765210414420,8.08,135.51,135.49,3.15549674]
[1765210414584,17.56994492,135.52,135.49,3.84549674]
[1765210414786,17.56994492,135.52,135.49,3.15549674]
[1765210415191,9.48994492,135.51,135.47,7.38149917]
[1765210415392,9.48994492,135.51,135.47,10.53699591]
[1765210415592,0.68,135.5,135.47,10.53693876]
[1765210415823,0.68,135.5,135.47,11.22693876]
[1765210416115,16.13914642,135.52,135.48,3.84549674]
[1765210416316,8.80994492,135.51,135.49,3.15549674]
[1765210416517,9.48994492,135.51,135.48,3.15549674]
[1765210416726,8.80994492,135.51,135.48,3.15549674]
[1765210417020,0.68,135.5,135.48,3.15549674]
[1765210417435,0.68,135.5,135.46,7.3820943]
[1765210417595,0.68,135.5,135.45,19.14639069]
[1765210417596,8.08,135.49,135.45,11.22809948]
[1765210417790,8.08,135.49,135.46,3.15549674]
[1765210418017,8.08,135.49,135.45,11.22809948]
[1765210418018,8.76,135.49,135.45,11.22809948]
[1765210418221,9.48994492,135.48,135.44,10.53851992]
[1765210418725,0.68,135.47,135.44,7.38302318]
[1765210418930,8.08,135.46,135.44,7.38302318]
[1765210419405,8.80994492,135.45,135.42,3.15549674]
[1765210419616,8.80994492,135.45,135.42,7.38427791]
[1765210419617,9.48994492,135.45,135.42,7.38427791]
[1765210420121,0.68,135.44,135.41,7.38488214]
[1765210420314,0.68,135.44,135.42,7.38442021]
[1765210420511,0.68,135.44,135.41,10.54032091]
[1765210420921,0.68,135.44,135.42,7.38433715]
[1765210421226,0.68,135.44,135.42,10.53983389]
[1765210421434,8.80994492,135.45,135.42,10.53983389]
[1765210421603,0.68,135.44,135.41,3.15549674]
[1765210421794,0.68,135.44,135.41,3.84549674]
[1765210422115,0.68,135.44,135.42,7.38436093]
[1765210422928,8.08,135.46,135.43,3.15549674]
[1765210423132,8.80994492,135.45,135.42,11.22985767]
[1765210423315,9.48994492,135.45,135.42,8.07436093]
[1765210423623,8.80994492,135.45,135.42,11.22985767]
[1765210424006,9.48994492,135.45,135.42,11.22985767]
[1765210424443,9.48994492,135.45,135.42,10.53985767]
[1765210425000,0.68,135.44,135.41,7.38485538]
[1765210425426,0.68,135.44,135.41,10.54035212]
[1765210426418,8.80994492,135.45,135.42,3.15549674]
[1765210426629,8.80994492,135.45,135.42,3.84549674]
[1765210426930,8.80994492,135.45,135.43,3.15549674]
[1765210427342,9.48994492,135.45,135.43,3.15549674]
[1765210427824,16.19134567,135.48,135.44,10.53844412]
[1765210428025,16.88994492,135.49,135.46,3.15549674]
[1765210428199,16.88994492,135.49,135.44,8.07294738]
[1765210428200,8.80994492,135.49,135.47,3.15549674]
[1765210428407,0.68,135.53,135.48,3.15549674]
[1765210428607,8.08,135.53,135.51,3.15549674]
[1765210429009,8.80994492,135.52,135.51,3.15549674]
[1765210430809,8.08,135.53,135.51,15.74964363]
[1765210431128,8.80994492,135.52,135.51,8.37015866]
[1765210431335,9.46994492,135.52,135.49,8.37015866]
[1765210431518,9.46994492,135.52,135.49,15.75047066]
[1765210431835,0.66,135.51,135.48,15.75109669]
[1765210432934,8.80994492,135.5,135.47,15.75166293]
[1765210433110,16.88994492,135.5,135.46,8.37015866]
[1765210433433,0.66,135.49,135.46,15.75223102]
[1765210434107,8.80994492,135.48,135.46,8.37015866]
[1765210434436,9.46994492,135.48,135.46,8.37015866]
[1765210434731,8.80994492,135.49,135.46,15.75231251]
[1765210435231,9.46994492,135.49,135.47,8.37015866]
[1765210435620,9.46994492,135.49,135.46,15.75231251]
[1765210436019,9.46994492,135.49,135.47,8.37015866]
[1765210436409,16.88994492,135.5,135.48,8.37015866]
[1765210437638,17.54994492,135.5,135.49,7.38061849]
[1765210438836,16.308864,135.52,135.49,9.04015866]
[1765210439034,8.80994492,135.52,135.51,8.37015866]
[1765210439536,8.08,135.54,135.51,9.08015866]
[1765210439741,8.75,135.54,135.52,8.37015866]
[1765210440415,8.90994492,135.55,135.5,0.71]
[1765210440416,0.1,135.55,135.53,9.08015866]
[1765210440618,0.1,135.55,135.54,8.37015866]
[1765210440837,0.1,135.55,135.54,15.74805448]
[1765210442719,0.1,135.55,135.54,5.40599185]
[1765210443226,0.1,135.55,135.54,6.11599185]
[1765210443837,0.1,135.55,135.49,5.40599185]
[1765210443838,8.80994492,135.54,135.49,5.40599185]
[1765210444027,14.21593677,135.54,135.49,12.78646508]
[1765210444223,8.80994492,135.52,135.49,12.78646508]
[1765210444434,8.80994492,135.52,135.48,18.4525802]
[1765210444435,16.88994492,135.52,135.48,12.78695118]
[1765210444642,8.80994492,135.5,135.48,7.38095933]
[1765210444943,8.80994492,135.5,135.48,5.40599185]
[1765210445242,8.80994492,135.5,135.47,31.24175344]
[1765210445423,8.80994492,135.5,135.47,31.95175344]
[1765210446022,8.80994492,135.51,135.48,6.11599185]
[1765210446444,8.80994492,135.51,135.49,5.40599185]
[1765210446643,8.80994492,135.51,135.48,6.11599185]
[1765210446855,8.80994492,135.51,135.49,7.38061849]
[1765210447029,0.67,135.53,135.49,12.78661034]
[1765210447233,8.80994492,135.52,135.49,31.23815657]
[1765210447752,9.47994492,135.52,135.49,31.23815657]
[1765210448068,0.67,135.51,135.49,25.83216472]
[1765210448548,0.67,135.51,135.49,31.23815657]
[1765210448861,8.80994492,135.52,135.51,7.37952918]
[1765210449042,9.47994492,135.52,135.51,7.37952918]
[1765210449239,8.80994492,135.53,135.51,12.78552103]
[1765210449438,8.80994492,135.53,135.52,5.40599185]
[1765210450639,8.80994492,135.53,135.51,31.23434399]
[1765210450946,25.11880892,135.53,135.51,25.82835214]
[1765210451153,25.11880892,135.51,135.5,7.37984798]
[1765210451838,25.78880892,135.51,135.5,7.37984798]
[1765210454474,8.80994492,135.5,135.45,0.71]
[1765210454760,9.47994492,135.5,135.44,0.71]
[1765210454960,9.47994492,135.5,135.48,12.78679854]
[1765210455144,9.47994492,135.5,135.48,7.38080669]
[1765210455456,9.47994492,135.49,135.48,7.38080669]
[1765210457036,8.80994492,135.49,135.48,12.78679854]
[1765210457731,24.388864,135.51,135.48,13.49679854]
[1765210457926,9.47994492,135.5,135.48,5.40599185]
[1765210458157,9.47994492,135.5,135.47,12.7875837]
[1765210458336,0.67,135.49,135.46,12.78801739]
[1765210458740,0.67,135.49,135.45,12.78858362]
[1765210459050,8.80994492,135.47,135.45,12.78858362]
[1765210459452,9.47994492,135.47,135.45,12.78858362]
[1765210460745,8.80994492,135.47,135.45,12.78858362]
[1765210460943,8.80994492,135.47,135.46,5.40599185]
[1765210462850,8.80994492,135.47,135.46,12.78824491]
[1765210464267,8.80994492,135.47,135.44,18.45710457]
[1765210464444,8.80994492,135.47,135.41,7.38497895]
[1765210464445,8.80994492,135.44,135.41,7.38497895]
[1765210464642,8.80994492,135.44,135.4,7.38532191]
[1765210464643,8.80994492,135.42,135.4,7.38532191]
[1765210464872,8.80994492,135.42,135.4,13.50131376]
[1765210465154,8.08,135.43,135.41,5.40599185]
[1765210465355,8.08,135.43,135.42,5.40599185]
[1765210465858,8.08,135.43,135.41,6.11599185]
[1765210466056,8.08,135.43,135.42,12.79042546]
[1765210466263,8.80994492,135.47,135.42,31.96150949]
[1765210466462,16.88994492,135.47,135.45,5.40599185]
[1765210466857,16.88994492,135.47,135.44,5.40599185]
[1765210467164,0.67,135.46,135.44,5.40599185]
[1765210467367,17.55994492,135.47,135.44,5.40599185]
[1765210468166,17.55994492,135.47,135.45,7.38279808]
[1765210468566,16.88994492,135.47,135.45,7.38279808]
[1765210469148,17.55994492,135.47,135.45,7.38279808]
[1765210470469,16.88994492,135.47,135.45,12.78878993]
[1765210470763,17.55994492,135.47,135.45,12.78878993]
[1765210471346,17.55994492,135.47,135.45,7.38279808]
[1765210473154,8.08,135.47,135.46,6.11599185]
[1765210473365,8.08,135.47,135.46,5.40599185]
[1765210473763,8.08,135.47,135.45,12.78878993]
[1765210474462,8.75,135.47,135.45,12.78878993]
[1765210474766,8.08,135.47,135.45,9.40373752]
[1765210474965,8.08,135.47,135.46,2.02093944]
[1765210475372,8.75,135.47,135.44,9.40404962]
[1765210475674,8.75,135.47,135.45,7.38274234]
[1765210475857,8.75,135.47,135.44,9.40414077]
[1765210476056,0.67,135.46,135.44,9.40414077]
[1765210476577,8.80994492,135.45,135.43,2.02093944]
[1765210476973,0.67,135.45,135.43,2.02093944]
[1765210477159,0.67,135.45,135.43,9.40459168]
[1765210477874,8.80994492,135.46,135.43,9.40459168]
[1765210478074,9.47994492,135.46,135.43,9.40459168]
[1765210479076,0.67,135.45,135.43,2.02093944]
[1765210479373,8.80994492,135.43,135.4,9.40615859]
[1765210479578,0.67,135.42,135.4,9.40615859]
[1765210479774,8.80994492,135.43,135.41,2.73093944]
[1765210480153,8.80994492,135.41,135.37,19.177487]
[1765210480447,16.88994492,135.41,135.39,9.40691904]
[1765210480647,17.55994492,135.41,135.39,2.02093944]
[1765210481978,17.55994492,135.41,135.38,9.40734766]
[1765210482457,0.67,135.4,135.38,9.40734766]
[1765210482987,8.08,135.41,135.39,10.11647393]
[1765210483275,8.08,135.41,135.39,7.38553449]
[1765210483479,8.75,135.41,135.38,9.40733898]
[1765210483773,8.75,135.41,135.38,2.02093944]
[1765210483981,9.47994492,135.4,135.37,9.40787882]
[1765210484278,9.47994492,135.4,135.36,9.40846582]
[1765210484451,8.80994492,135.38,135.36,7.38752638]
[1765210484853,8.80994492,135.38,135.37,7.38716111]
[1765210485773,8.80994492,135.38,135.36,7.38747904]
[1765210486280,17.55994492,135.38,135.35,9.40900979]
[1765210486577,8.80994492,135.36,135.34,0.2]
[1765210486770,10.10093944,135.35,135.34,0.2]
[1765210486960,19.58088436,135.35,135.34,0.2]
[1765210487963,26.96913703,135.35,135.34,0.2]
[1765210488668,30.37506869,135.35,135.34,0.2]
[1765210492859,24.94819759,135.35,135.34,0.2]
[1765210493071,30.37506869,135.35,135.34,0.2]
[1765210493390,8.80994492,135.31,135.3,0.2]
[1765210493559,8.80994492,135.29,135.24,0.2]
[1765210493756,25.11880892,135.28,135.24,0.2]
[1765210493959,30.54568002,135.25,135.24,0.2]
[1765210494387,31.14568002,135.25,135.24,0.2]
[1765210494924,30.54568002,135.25,135.24,0.2]
[1765210495265,31.14568002,135.25,135.24,0.2]
[1765210496192,30.54568002,135.25,135.24,0.2]
[1765210497076,25.11880892,135.25,135.24,0.2]
[1765210497381,30.54568002,135.25,135.24,0.2]
[1765210499268,38.64568002,135.25,135.24,0.2]
[1765210499895,39.24568002,135.25,135.24,0.2]
[1765210500276,46.63939536,135.25,135.24,0.2]
[1765210500580,46.63939536,135.25,135.24,0.1]
[1765210500989,8.80994492,135.24,135.23,0.2]
[1765210501288,14.73681602,135.24,135.23,0.2]
[1765210502422,9.30994492,135.24,135.23,0.2]
[1765210502688,8.4098649,135.24,135.23,0.2]
[1765210503063,25.31980982,135.25,135.23,0.2]
[1765210503284,25.31980982,135.25,135.24,0.71]
[1765210503285,8.1,135.25,135.24,0.71]
[1765210503869,8.4098649,135.28,135.24,0.71]
[1765210504064,8.4098649,135.3,135.25,8.4098649]
[1765210504269,16.90994492,135.29,135.25,8.4098649]
[1765210504469,16.90994492,135.29,135.26,0.71]
[1765210504670,25.31980982,135.29,135.24,15.80394008]
[1765210504906,8.4098649,135.28,135.24,0.71]
[1765210505174,8.4098649,135.28,135.25,0.71]
[1765210506087,16.90994492,135.29,135.25,0.71]
[1765210506595,16.90994492,135.29,135.27,8.4098649]
[1765210506893,16.90994492,135.29,135.25,0.71]
[1765210507097,16.90994492,135.29,135.26,8.4098649]
[1765210507497,16.90994492,135.29,135.23,18.68616822]
[1765210507676,16.90994492,135.29,135.25,8.4098649]
[1765210508077,16.90994492,135.29,135.26,0.71]
[1765210508397,16.90994492,135.29,135.26,9.1198649]
[1765210508593,8.1,135.29,135.27,8.4098649]
[1765210508801,8.1,135.29,135.26,15.80293514]
[1765210508988,16.90994492,135.29,135.26,0.71]
[1765210509297,8.80994492,135.28,135.26,0.71]
[1765210509783,16.308864,135.25,135.23,0.2]
[1765210509978,41.62867382,135.24,135.23,0.2]
[1765210510389,41.62867382,135.24,135.22,0.2]
[1765210510589,24.61461866,135.23,135.22,0.2]
[1765210510799,24.91461866,135.23,135.22,0.2]
[1765210512378,8.80994492,135.22,135.21,0.2]
[1765210512583,18.51980981,135.22,135.21,0.2]
[1765210513084,40.7014364,135.22,135.21,0.2]
[1765210513482,39.70143641,135.22,135.21,0.2]
[1765210513798,40.7014364,135.22,135.21,0.2]
[1765210514098,9.10994492,135.22,135.21,0.2]
[1765210514285,24.91516553,135.22,135.21,0.2]
[1765210515485,33.01516553,135.22,135.21,0.2]
[1765210519679,24.60530063,135.22,135.21,0.2]
[1765210519987,33.01516553,135.22,135.21,0.2]
[1765210520182,25.11880892,135.15,135.13,0.71]
[1765210520395,8.1,135.14,135.13,0.71]
[1765210521095,8.1,135.14,135.13,16.52014611]
[1765210521298,16.308864,135.16,135.13,16.52014611]
[1765210521503,24.408864,135.16,135.15,8.4098649]
[1765210521707,24.408864,135.16,135.15,9.0898649]
[1765210522001,24.408864,135.16,135.15,0.68]
[1765210524301,24.408864,135.16,135.15,9.0898649]
[1765210524502,24.408864,135.16,135.15,0.68]
[1765210525499,8.1,135.16,135.15,16.48905098]
[1765210525897,25.11880892,135.19,135.15,16.48905098]
[1765210526205,8.1,135.18,135.16,0.68]
[1765210528881,8.80994492,135.17,135.16,0.68]
[1765210530595,8.1,135.18,135.16,0.68]
[1765210531398,7.38,135.18,135.17,8.4098649]
[1765210531613,8.4098649,135.25,135.17,8.4098649]
[1765210531818,8.1,135.23,135.19,8.4098649]
[1765210531992,24.408864,135.23,135.18,9.0898649]
[1765210532207,8.80994492,135.22,135.18,9.0898649]
[1765210532431,8.80994492,135.22,135.19,0.68]
[1765210532719,8.80994492,135.22,135.19,9.0898649]
[1765210533018,8.1,135.23,135.21,8.4098649]
[1765210533322,8.1,135.23,135.22,15.80522061]
[1765210533690,8.1,135.25,135.22,16.48522061]
[1765210533917,8.1,135.25,135.23,9.0898649]
[1765210534107,16.308864,135.24,135.23,0.68]
[1765210534606,8.1,135.25,135.23,0.68]
[1765210534808,16.308864,135.24,135.23,0.68]
[1765210535199,16.308864,135.24,135.23,9.0898649]
[1765210535813,16.308864,135.24,135.23,16.48467374]
[1765210536005,16.308864,135.24,135.23,0.68]
[1765210537207,16.308864,135.24,135.23,8.07480884]
[1765210537399,16.308864,135.24,135.23,0.68]
[1765210539971,8.1,135.25,135.23,0.68]
[1765210540897,8.1,135.25,135.23,16.48445208]
[1765210541094,8.80994492,135.3,135.24,8.4098649]
[1765210541295,14.5252251,135.33,135.24,0.68]
[1765210541521,8.4098649,135.27,135.23,0.68]
[1765210541829,8.1,135.27,135.25,8.4098649]
[1765210542007,8.1,135.27,135.25,15.80348377]
[1765210542213,16.90994492,135.29,135.26,0.68]
[1765210542607,8.1,135.29,135.26,0.68]
[1765210542808,8.1,135.29,135.26,9.0898649]
[1765210543016,8.1,135.29,135.27,8.4098649]
[1765210543217,8.1,135.29,135.27,9.0898649]
[1765210543446,8.1,135.29,135.28,0.68]
[1765210545129,8.1,135.29,135.26,0.68]
[1765210545334,8.1,135.29,135.27,0.68]
[1765210546050,8.1,135.29,135.25,7.39360277]
[1765210546344,8.1,135.29,135.27,0.68]
[1765210546516,8.1,135.29,135.27,9.0898649]
[1765210546914,33.21880892,135.31,135.28,9.0898649]
[1765210547481,33.21880892,135.31,135.29,0.68]
[1765210549322,9.1098649,135.34,135.3,8.4098649]
[1765210549323,25.11880892,135.34,135.3,8.4098649]
[1765210549511,8.1,135.33,135.3,8.4098649]
[1765210549838,8.1,135.33,135.31,0.68]
[1765210550731,8.1,135.33,135.32,8.4098649]
[1765210550922,8.80994492,135.36,135.32,8.4098649]
[1765210551121,8.80994492,135.36,135.33,0.68]
[1765210551122,8.1,135.35,135.33,0.68]
[1765210551527,8.4098649,135.4,135.34,8.4098649]
[1765210551741,8.1,135.39,135.34,8.4098649]
[1765210552046,16.308864,135.36,135.35,16.47811757]
[1765210552246,8.1,135.39,135.35,0.68]
[1765210552420,8.80994492,135.38,135.35,0.68]
[1765210553350,8.80994492,135.38,135.35,16.47795132]
[1765210553642,8.1,135.4,135.37,8.4098649]
[1765210553827,8.1,135.4,135.38,0.68]
[1765210554649,8.1,135.4,135.38,16.476296]
[1765210554836,16.308864,135.39,135.38,0.68]
[1765210555747,8.80994492,135.38,135.34,8.4098649]
[1765210556043,8.1,135.37,135.35,0.68]
[1765210556247,8.1,135.37,135.35,16.47790996]
[1765210556749,8.1,135.37,135.36,0.68]
[1765210557451,8.1,135.37,135.34,0.68]
[1765210557828,8.1,135.37,135.34,15.79861275]
[1765210558027,8.1,135.37,135.35,9.0898649]
[1765210558228,8.1,135.37,135.35,0.68]
[1765210558541,8.1,135.37,135.35,16.47800045]
[1765210558849,8.1,135.37,135.33,9.0898649]
[1765210559333,16.5098649,135.37,135.34,0.66]
[1765210559664,16.5098649,135.37,135.32,26.88388586]
[1765210559665,8.80994492,135.36,135.33,0.66]
[1765210560149,8.80994492,135.36,135.33,8.04932713]
[1765210560555,16.308864,135.37,135.35,8.4098649]
[1765210560763,16.308864,135.38,135.36,8.4098649]
[1765210560923,16.308864,135.38,135.37,0.66]
[1765210561129,16.308864,135.38,135.37,9.0698649]
[1765210561433,8.1,135.39,135.37,9.0698649]
[1765210561641,8.1,135.39,135.38,9.0698649]
[1765210562261,25.11880892,135.42,135.38,9.0698649]
[1765210562433,8.1,135.41,135.4,15.79538927]
[1765210562825,0.2,135.43,135.4,16.45538927]
[1765210563029,8.3,135.43,135.4,15.79538927]
[1765210563235,8.3,135.43,135.38,18.46620352]
[1765210563236,8.80994492,135.42,135.38,9.0698649]
[1765210563439,8.80994492,135.42,135.39,0.66]
[1765210563839,8.80994492,135.42,135.39,16.45583063]
[1765210564351,16.308864,135.41,135.4,0.66]
[1765210564851,25.11880892,135.39,135.34,8.04869951]
[1765210565050,13.52059905,135.38,135.34,8.04869951]
[1765210565251,13.52059905,135.38,135.35,0.66]
[1765210567057,8.1,135.38,135.35,13.46875131]
[1765210567457,8.1,135.38,135.35,0.66]
[1765210567650,13.52059905,135.38,135.35,0.66]
[1765210568242,16.308864,135.36,135.33,7.38917589]
[1765210568460,30.53940797,135.34,135.29,0.66]
[1765210568641,25.11880892,135.34,135.3,5.42059905]
[1765210569061,25.11880892,135.34,135.31,8.05029975]
[1765210570160,13.52059905,135.35,135.31,8.05029975]
[1765210570161,22.19673707,135.38,135.33,5.42059905]
[1765210570464,16.90994492,135.37,135.34,0.66]
[1765210570968,5.42059905,135.36,135.32,0.66]
[1765210571143,30.53940797,135.34,135.3,8.05075432]
[1765210571345,8.1,135.33,135.3,8.05075432]
[1765210571747,8.1,135.33,135.31,0.66]
[1765210572361,8.1,135.33,135.31,6.08059905]
[1765210572768,8.1,135.33,135.3,25.86821182]
[1765210572943,8.1,135.33,135.31,0.66]
[1765210573259,8.1,135.33,135.3,8.05075432]
[1765210573839,8.1,135.33,135.3,7.39075432]
[1765210574066,8.1,135.33,135.31,0.66]
[1765210574740,8.1,135.33,135.31,8.05039707]
[1765210574936,8.1,135.33,135.31,0.66]
[1765210576051,13.52059905,135.33,135.29,8.05144789]
[1765210576250,8.1,135.33,135.3,6.08059905]
[1765210576463,8.1,135.33,135.31,5.42059905]
[1765210576646,8.1,135.33,135.31,6.08059905]
[1765210576846,8.1,135.33,135.3,5.42059905]
[1765210577170,8.1,135.33,135.32,0.66]
[1765210577745,8.1,135.33,135.32,8.04989062]
[1765210577961,8.1,135.33,135.31,7.39019013]
[1765210578248,8.1,135.33,135.26,0.66]
[1765210578249,8.80994492,135.31,135.26,0.66]
[1765210578461,13.52059905,135.3,135.26,0.66]
[1765210578767,8.80994492,135.29,135.26,0.66]
[1765210580246,8.80994492,135.29,135.26,8.05311604]
[1765210581274,14.94054397,135.29,135.25,7.39358882]
[1765210581476,8.80994492,135.29,135.26,8.1130229]
[1765210583348,14.94054397,135.29,135.25,7.39350122]
[1765210583577,14.94054397,135.29,135.25,8.11350122]
[1765210585553,8.1,135.28,135.25,8.11350122]
[1765210585765,14.23059905,135.28,135.25,7.39353117]
[1765210586078,14.23059905,135.28,135.25,8.11353117]
[1765210586079,8.1,135.28,135.25,8.11353117]
[1765210586476,8.1,135.28,135.26,6.14059905]
[1765210586662,8.1,135.28,135.26,0.72]
[1765210586977,8.1,135.28,135.25,12.81413022]
[1765210587174,8.1,135.28,135.25,8.11353117]
[1765210587359,8.81,135.28,135.25,7.39353117]
[1765210587557,8.1,135.28,135.25,8.11353117]
[1765210588071,8.1,135.28,135.22,6.14059905]
[1765210588072,8.80994492,135.26,135.22,6.14059905]
[1765210588288,8.1,135.25,135.22,6.14059905]
[1765210588580,8.1,135.25,135.23,8.11443661]
[1765210589395,8.1,135.25,135.22,5.42059905]
[1765210589602,16.308864,135.22,135.2,7.39612368]
[1765210589882,25.118864,135.22,135.19,7.39682207]
[1765210590054,25.118864,135.22,135.17,7.39777893]
[1765210590055,14.94054397,135.21,135.17,7.39777893]
[1765210590254,14.94054397,135.21,135.17,8.11777893]
[1765210590450,8.80994492,135.19,135.16,7.39846193]
[1765210590677,8.1,135.18,135.17,7.39809129]
[1765210591285,8.1,135.18,135.17,8.11809129]
[1765210591860,8.1,135.18,135.17,7.39809129]
[1765210592050,8.1,135.18,135.16,7.39819351]
[1765210592255,8.1,135.18,135.13,0.72]
[1765210592256,13.52059905,135.18,135.13,0.72]
[1765210592497,6.13059905,135.17,135.13,7.39993361]
[1765210592683,6.13059905,135.17,135.14,7.39970154]
[1765210592859,16.308864,135.16,135.15,7.39898385]
[1765210593060,8.1,135.17,135.15,7.39898385]
[1765210593262,13.52059905,135.17,135.13,7.40013128]
[1765210593467,13.52059905,135.17,135.1,0.1]
[1765210593468,16.308864,135.14,135.1,6.24059905]
[1765210593789,8.1,135.13,135.1,0.1]
[1765210594201,8.1,135.13,135.1,5.52059905]
[1765210594376,8.1,135.13,135.1,6.24059905]
[1765210594769,8.1,135.13,135.11,0.72]
[1765210595391,8.81,135.13,135.1,0.1]
[1765210595702,8.1,135.13,135.1,0.1]